[Event "*** Titled Tuesday Blitz"]
[Site "Chess.com"]
[Date "2020.12.29"]
[Round "1"]
[White "pastouche06"]
[Black "beto-betun"]
[Result "1-0"]
[WhiteElo "2526"]
[BlackElo "2180"]
[TimeControl "180+1"]
[EndTime "10:07:15 PST"]
[Termination "pastouche06 won by resignation"]

1. d4 {[%clk 0:03:00.9]} 1... Nf6 {[%clk 0:02:58.8]} 2. c4 {[%clk 0:03:01.2]}
2... g6 {[%clk 0:02:56.1]} 3. f3 {[%clk 0:03:00.9]} 3... Bg7 {[%clk 0:02:45.5]}
4. e4 {[%clk 0:02:59.7]} 4... d6 {[%clk 0:02:44]} 5. Ne2 {[%clk 0:02:59.4]} 5...
O-O {[%clk 0:02:42]} 6. Be3 {[%clk 0:02:59.6]} 6... Na6 {[%clk 0:02:34.7]} 7.
Qd2 {[%clk 0:02:57.2]} 7... c5 {[%clk 0:02:33]} 8. Nbc3 {[%clk 0:02:53.7]} 8...
cxd4 {[%clk 0:02:20.5]} 9. Nxd4 {[%clk 0:02:54.6]} 9... Bd7 {[%clk 0:02:12.1]}
10. Be2 {[%clk 0:02:53.9]} 10... Nc5 {[%clk 0:02:07.1]} 11. O-O {[%clk
0:02:53.8]} 11... a6 {[%clk 0:02:04.3]} 12. Rac1 {[%clk 0:02:34.1]} 12... Rc8
{[%clk 0:02:00.6]} 13. Rfd1 {[%clk 0:02:28.6]} 13... Ne6 {[%clk 0:01:54.1]} 14.
Nc2 {[%clk 0:02:25]} 14... Bc6 {[%clk 0:01:46.8]} 15. Nb4 {[%clk 0:02:18.6]}
15... Qd7 {[%clk 0:01:24.5]} 16. Nbd5 {[%clk 0:02:12.1]} 16... Bxd5 {[%clk
0:01:20]} 17. exd5 {[%clk 0:02:10.5]} 17... Nc5 {[%clk 0:01:17]} 18. b3 {[%clk
0:02:00.1]} 18... b6 {[%clk 0:01:15.8]} 19. Re1 {[%clk 0:01:56.3]} 19... Rfe8
{[%clk 0:01:14.3]} 20. Bf1 {[%clk 0:01:54.5]} 20... Rcd8 {[%clk 0:01:02.8]} 21.
b4 {[%clk 0:01:50]} 21... Na4 {[%clk 0:00:53.1]} 22. Nxa4 {[%clk 0:01:49.4]}
22... Qxa4 {[%clk 0:00:54]} 23. Bxb6 {[%clk 0:01:49.7]} 23... Rb8 {[%clk
0:00:52.3]} 24. Ba5 {[%clk 0:01:46.2]} 24... Nd7 {[%clk 0:00:36]} 25. Re4 {[%clk
0:01:32.4]} 25... Ne5 {[%clk 0:00:15.3]} 26. f4 {[%clk 0:01:23.3]} 26... Nd7
{[%clk 0:00:15.4]} 27. Rce1 {[%clk 0:01:18.5]} 27... Bf6 {[%clk 0:00:14.6]} 28.
Be2 {[%clk 0:01:00.5]} 28... Nf8 {[%clk 0:00:13.5]} 29. Bd1 {[%clk 0:00:41.7]}
29... Qd7 {[%clk 0:00:13.7]} 30. Bb3 {[%clk 0:00:42.1]} 30... h6 {[%clk
0:00:10.2]} 31. Qf2 {[%clk 0:00:36.5]} 31... Kh7 {[%clk 0:00:09.2]} 32. c5
{[%clk 0:00:34.7]} 32... dxc5 {[%clk 0:00:08.9]} 33. bxc5 {[%clk 0:00:35.6]}
33... Qf5 {[%clk 0:00:07.6]} 34. Bc7 {[%clk 0:00:24.5]} 34... Rbc8 {[%clk
0:00:07.2]} 35. d6 {[%clk 0:00:24.6]} 35... Qd7 {[%clk 0:00:07.1]} 36. Ba4
{[%clk 0:00:22]} 36... Qxa4 {[%clk 0:00:06.7]} 37. Rxa4 {[%clk 0:00:21.2]} 37...
Rxc7 {[%clk 0:00:07.6]} 38. dxc7 {[%clk 0:00:21.5]} 38... e6 {[%clk 0:00:08.1]}
39. Rxa6 {[%clk 0:00:20.5]} 39... Rc8 {[%clk 0:00:08.4]} 40. Ra7 {[%clk
0:00:19.7]} 40... Nd7 {[%clk 0:00:08.7]} 41. Rd1 {[%clk 0:00:19.7]} 41... Nxc5
{[%clk 0:00:08.2]} 42. Qxc5 {[%clk 0:00:19.2]} 42... Bd4+ {[%clk 0:00:09.1]} 43.
Qxd4 {[%clk 0:00:19.2]} 1-0

[Event "*** Titled Tuesday Blitz"]
[Site "Chess.com"]
[Date "2020.12.29"]
[Round "1"]
[White "ZatonskihAnna"]
[Black "Euge_chess"]
[Result "1-0"]
[WhiteElo "2501"]
[BlackElo "2065"]
[TimeControl "180+1"]
[EndTime "10:07:15 PST"]
[Termination "ZatonskihAnna won by checkmate"]

1. e4 {[%clk 0:02:59.6]} 1... e5 {[%clk 0:02:55.9]} 2. Nf3 {[%clk 0:02:59]} 2...
Nc6 {[%clk 0:02:56]} 3. Nc3 {[%clk 0:02:58.8]} 3... Nf6 {[%clk 0:02:56]} 4. d4
{[%clk 0:02:58.6]} 4... exd4 {[%clk 0:02:55.1]} 5. Nxd4 {[%clk 0:02:59.5]} 5...
Bb4 {[%clk 0:02:55.4]} 6. Nxc6 {[%clk 0:02:59.3]} 6... Bxc3+ {[%clk 0:02:49.7]}
7. bxc3 {[%clk 0:02:58.7]} 7... bxc6 {[%clk 0:02:50.6]} 8. Bd3 {[%clk
0:02:55.3]} 8... O-O {[%clk 0:02:46.9]} 9. O-O {[%clk 0:02:54.8]} 9... h6 {[%clk
0:02:44.4]} 10. e5 {[%clk 0:02:32.4]} 10... Nd5 {[%clk 0:02:37.5]} 11. c4 {[%clk
0:02:14.7]} 11... Ne7 {[%clk 0:02:33.9]} 12. Qf3 {[%clk 0:02:09.2]} 12... d5
{[%clk 0:02:21.3]} 13. exd6 {[%clk 0:01:25.3]} 13... Qxd6 {[%clk 0:02:06.1]} 14.
a4 {[%clk 0:01:04.5]} 14... Qd4 {[%clk 0:01:51.7]} 15. Ba3 {[%clk 0:00:59.7]}
15... Re8 {[%clk 0:01:44.5]} 16. Rae1 {[%clk 0:00:58.8]} 16... Be6 {[%clk
0:01:41.9]} 17. Re4 {[%clk 0:00:42.5]} 17... Qd7 {[%clk 0:01:23]} 18. Rfe1
{[%clk 0:00:41]} 18... Ng6 {[%clk 0:01:10.3]} 19. Bb2 {[%clk 0:00:31.3]} 19...
Rab8 {[%clk 0:01:07]} 20. Bc3 {[%clk 0:00:31.5]} 20... Red8 {[%clk 0:00:54.8]}
21. R4e3 {[%clk 0:00:25.4]} 21... Bg4 {[%clk 0:00:54.1]} 22. Qg3 {[%clk
0:00:25.1]} 22... Bf5 {[%clk 0:00:53.8]} 23. h4 {[%clk 0:00:20.9]} 23... Bxd3
{[%clk 0:00:53]} 24. Rxd3 {[%clk 0:00:18.8]} 24... Qf5 {[%clk 0:00:43.2]} 25.
Qxc7 {[%clk 0:00:17.5]} 25... Rf8 {[%clk 0:00:40.8]} 26. Qg3 {[%clk 0:00:16.7]}
26... Nf4 {[%clk 0:00:40]} 27. Rf3 {[%clk 0:00:16.2]} 27... g5 {[%clk
0:00:39.7]} 28. hxg5 {[%clk 0:00:16]} 28... hxg5 {[%clk 0:00:40.6]} 29. Re5
{[%clk 0:00:15.4]} 29... Qxe5 {[%clk 0:00:38.6]} 30. Bxe5 {[%clk 0:00:14.8]}
30... f6 {[%clk 0:00:39.5]} 31. Bxf4 {[%clk 0:00:14.5]} 31... Rb1+ {[%clk
0:00:38.6]} 32. Kh2 {[%clk 0:00:14.8]} 32... Rf7 {[%clk 0:00:38.7]} 33. Bxg5
{[%clk 0:00:15.2]} 33... Rh7+ {[%clk 0:00:38.3]} 34. Bh4+ {[%clk 0:00:15.2]}
34... Kf7 {[%clk 0:00:38.5]} 35. Rd3 {[%clk 0:00:14.5]} 35... Rb7 {[%clk
0:00:36.6]} 36. Qf4 {[%clk 0:00:12.8]} 36... Kg8 {[%clk 0:00:29.7]} 37. g3
{[%clk 0:00:12.5]} 37... Rbf7 {[%clk 0:00:28.1]} 38. Qf5 {[%clk 0:00:12.3]}
38... Rh6 {[%clk 0:00:27.1]} 39. Rd8+ {[%clk 0:00:11.2]} 39... Kg7 {[%clk
0:00:27]} 40. Qc8 {[%clk 0:00:10.7]} 40... Kg6 {[%clk 0:00:24.9]} 41. Rg8+
{[%clk 0:00:10.4]} 41... Kh5 {[%clk 0:00:24.2]} 42. Qf5# {[%clk 0:00:09.6]} 1-0

[Event "*** Titled Tuesday Blitz"]
[Site "Chess.com"]
[Date "2020.12.29"]
[Round "1"]
[White "Blitzstream"]
[Black "stasiek18"]
[Result "1-0"]
[WhiteElo "2711"]
[BlackElo "2381"]
[TimeControl "180+1"]
[EndTime "10:07:16 PST"]
[Termination "Blitzstream won on time"]

1. d4 {[%clk 0:02:56.6]} 1... Nf6 {[%clk 0:02:59.4]} 2. Bg5 {[%clk 0:02:54.3]}
2... d5 {[%clk 0:02:58.6]} 3. e3 {[%clk 0:02:53.2]} 3... Nbd7 {[%clk 0:02:54.4]}
4. f4 {[%clk 0:02:47.7]} 4... c5 {[%clk 0:02:50.4]} 5. c3 {[%clk 0:02:46.8]}
5... e6 {[%clk 0:02:00.4]} 6. Nf3 {[%clk 0:02:45.6]} 6... Be7 {[%clk 0:02:00.9]}
7. Nbd2 {[%clk 0:02:44.4]} 7... h6 {[%clk 0:01:52.9]} 8. Bh4 {[%clk 0:02:43.2]}
8... Qc7 {[%clk 0:01:52.7]} 9. Bd3 {[%clk 0:02:41.4]} 9... cxd4 {[%clk
0:01:45.4]} 10. cxd4 {[%clk 0:02:39.8]} 10... a6 {[%clk 0:01:07.5]} 11. O-O
{[%clk 0:02:34.8]} 11... Nb8 {[%clk 0:00:56.8]} 12. Rc1 {[%clk 0:02:32.4]} 12...
Nc6 {[%clk 0:00:57.2]} 13. Ne5 {[%clk 0:02:31.4]} 13... Bd7 {[%clk 0:00:57.7]}
14. Ndf3 {[%clk 0:02:24.1]} 14... Qb6 {[%clk 0:00:48.2]} 15. Rc3 {[%clk
0:01:43]} 15... Nxe5 {[%clk 0:00:33.5]} 16. Nxe5 {[%clk 0:01:29.5]} 16... Bb5
{[%clk 0:00:33.4]} 17. Rb3 {[%clk 0:01:25.6]} 17... Qa5 {[%clk 0:00:29.3]} 18.
Bxb5+ {[%clk 0:01:18]} 18... axb5 {[%clk 0:00:30.2]} 19. Qd3 {[%clk 0:01:04.7]}
19... O-O {[%clk 0:00:25.1]} 20. a3 {[%clk 0:00:48.6]} 20... b4 {[%clk
0:00:24.9]} 21. axb4 {[%clk 0:00:43.3]} 21... Qa2 {[%clk 0:00:23.6]} 22. Bxf6
{[%clk 0:00:39.4]} 22... gxf6 {[%clk 0:00:19.9]} 23. Ng4 {[%clk 0:00:38]} 23...
f5 {[%clk 0:00:19.7]} 24. Ne5 {[%clk 0:00:37.7]} 24... Rfc8 {[%clk 0:00:17.9]}
25. Nd7 {[%clk 0:00:34.4]} 25... Rc7 {[%clk 0:00:10.5]} 26. Ne5 {[%clk
0:00:24.7]} 26... Rac8 {[%clk 0:00:09.7]} 27. Rc3 {[%clk 0:00:21.3]} 27... Rxc3
{[%clk 0:00:09]} 28. bxc3 {[%clk 0:00:21.3]} 28... Qb3 {[%clk 0:00:09.9]} 29.
Rc1 {[%clk 0:00:15.9]} 29... Bxb4 {[%clk 0:00:08.8]} 30. Qb5 {[%clk 0:00:15.7]}
30... Qb2 {[%clk 0:00:05.5]} 31. Rf1 {[%clk 0:00:15.7]} 31... Qxc3 {[%clk
0:00:05.4]} 32. Qxb7 {[%clk 0:00:15]} 32... Qxe3+ {[%clk 0:00:05.6]} 33. Kh1
{[%clk 0:00:15.4]} 33... Rf8 {[%clk 0:00:04.4]} 34. Qxb4 {[%clk 0:00:14.9]}
34... Qe2 {[%clk 0:00:03.2]} 35. Qe1 {[%clk 0:00:14.5]} 35... Qb2 {[%clk
0:00:02]} 36. Qf2 {[%clk 0:00:14.5]} 1-0

[Event "*** Titled Tuesday Blitz"]
[Site "Chess.com"]
[Date "2020.12.29"]
[Round "1"]
[White "szachuspl"]
[Black "annacramling"]
[Result "1-0"]
[WhiteElo "2488"]
[BlackElo "2056"]
[TimeControl "180+1"]
[EndTime "10:07:18 PST"]
[Termination "szachuspl won on time"]

1. d4 {[%clk 0:02:58.9]} 1... Nf6 {[%clk 0:02:59.8]} 2. c4 {[%clk 0:02:58]} 2...
e6 {[%clk 0:03:00]} 3. Nf3 {[%clk 0:02:57.7]} 3... d5 {[%clk 0:03:00.3]} 4. Nc3
{[%clk 0:02:57.3]} 4... Be7 {[%clk 0:02:56.7]} 5. Bf4 {[%clk 0:02:56.7]} 5... c6
{[%clk 0:02:56.2]} 6. e3 {[%clk 0:02:56.6]} 6... O-O {[%clk 0:02:56.2]} 7. Bd3
{[%clk 0:02:55.4]} 7... Nbd7 {[%clk 0:02:55.4]} 8. O-O {[%clk 0:02:54.9]} 8...
h6 {[%clk 0:02:55.2]} 9. h3 {[%clk 0:02:53.7]} 9... dxc4 {[%clk 0:02:52.5]} 10.
Bxc4 {[%clk 0:02:53.7]} 10... b5 {[%clk 0:02:53.4]} 11. Be2 {[%clk 0:02:47.8]}
11... Bb7 {[%clk 0:02:53.2]} 12. Rc1 {[%clk 0:02:47.5]} 12... a6 {[%clk
0:02:50.6]} 13. Qc2 {[%clk 0:02:45.6]} 13... c5 {[%clk 0:02:48.7]} 14. Rfd1
{[%clk 0:02:43.3]} 14... Rc8 {[%clk 0:02:39.6]} 15. Qb1 {[%clk 0:02:41.9]} 15...
Qb6 {[%clk 0:02:33.7]} 16. Ne5 {[%clk 0:02:31.1]} 16... Nxe5 {[%clk 0:02:23.2]}
17. dxe5 {[%clk 0:02:27.6]} 17... Nd5 {[%clk 0:02:23]} 18. Ne4 {[%clk
0:02:20.7]} 18... Rfd8 {[%clk 0:01:45.8]} 19. Bg3 {[%clk 0:02:19.1]} 19... c4
{[%clk 0:01:31.2]} 20. Bf3 {[%clk 0:01:57.8]} 20... Nb4 {[%clk 0:01:21.9]} 21.
Nd6 {[%clk 0:01:42.1]} 21... Bxd6 {[%clk 0:00:47.8]} 22. exd6 {[%clk 0:01:42.1]}
22... Bxf3 {[%clk 0:00:47.6]} 23. gxf3 {[%clk 0:01:42.2]} 23... Nd3 {[%clk
0:00:46.9]} 24. Rc3 {[%clk 0:01:32.7]} 24... e5 {[%clk 0:00:43.8]} 25. Rcxd3
{[%clk 0:01:31.3]} 25... cxd3 {[%clk 0:00:41.8]} 26. Qxd3 {[%clk 0:01:31.7]}
26... Qc5 {[%clk 0:00:35.1]} 27. f4 {[%clk 0:01:28.6]} 27... e4 {[%clk
0:00:28.9]} 28. Qd2 {[%clk 0:01:22]} 28... Qc2 {[%clk 0:00:26.9]} 29. Qd4 {[%clk
0:01:11.9]} 29... Qc4 {[%clk 0:00:23.7]} 30. f5 {[%clk 0:01:05.3]} 30... Qxd4
{[%clk 0:00:23.2]} 31. Rxd4 {[%clk 0:01:05.7]} 31... Rc4 {[%clk 0:00:21.4]} 32.
Rd2 {[%clk 0:01:01.1]} 32... Rd7 {[%clk 0:00:15.1]} 33. f3 {[%clk 0:01:01.3]}
33... exf3 {[%clk 0:00:12.7]} 34. Kf2 {[%clk 0:01:01.7]} 34... g6 {[%clk
0:00:08.3]} 35. fxg6 {[%clk 0:01:01]} 35... fxg6 {[%clk 0:00:08.6]} 36. Kxf3
{[%clk 0:01:01.4]} 36... Kf7 {[%clk 0:00:09]} 37. e4 {[%clk 0:01:00.5]} 37...
Ke6 {[%clk 0:00:09.3]} 38. e5 {[%clk 0:01:01.1]} 38... Rf7+ {[%clk 0:00:09.6]}
39. Kg2 {[%clk 0:01:00.8]} 39... Kd7 {[%clk 0:00:05.4]} 40. Re2 {[%clk
0:01:00.7]} 40... Ke6 {[%clk 0:00:04.3]} 41. b3 {[%clk 0:01:00]} 41... Rc3
{[%clk 0:00:04.1]} 42. Rd2 {[%clk 0:00:59.9]} 42... Rd7 {[%clk 0:00:02.8]} 43.
Rf2 {[%clk 0:00:59]} 43... b4 {[%clk 0:00:02.7]} 44. Rf6+ {[%clk 0:00:59]} 44...
Kd5 {[%clk 0:00:02.9]} 45. Rxg6 {[%clk 0:00:59.3]} 45... Rc2+ {[%clk 0:00:02.7]}
46. Kf3 {[%clk 0:00:59.7]} 46... Rxa2 {[%clk 0:00:02.8]} 47. e6 {[%clk
0:00:57.5]} 47... Rd8 {[%clk 0:00:03.1]} 48. d7 {[%clk 0:00:57.4]} 48... Rf8+
{[%clk 0:00:02.5]} 49. Kg4 {[%clk 0:00:57.7]} 49... h5+ {[%clk 0:00:02.4]} 50.
Kxh5 {[%clk 0:00:55.9]} 50... Re2 {[%clk 0:00:01.4]} 51. Rg5+ {[%clk 0:00:51.7]}
1-0

[Event "*** Titled Tuesday Blitz"]
[Site "Chess.com"]
[Date "2020.12.29"]
[Round "1"]
[White "Orest_Vovk"]
[Black "Margarita2907"]
[Result "1-0"]
[WhiteElo "2527"]
[BlackElo "2187"]
[TimeControl "180+1"]
[EndTime "10:07:20 PST"]
[Termination "Orest_Vovk won by resignation"]

1. e4 {[%clk 0:02:57.6]} 1... c5 {[%clk 0:02:59.6]} 2. g3 {[%clk 0:02:57.1]}
2... d5 {[%clk 0:02:56.1]} 3. exd5 {[%clk 0:02:56.6]} 3... Qxd5 {[%clk
0:02:55.6]} 4. Nf3 {[%clk 0:02:57.1]} 4... Nf6 {[%clk 0:02:55.1]} 5. Bg2 {[%clk
0:02:56.8]} 5... Qd8 {[%clk 0:02:53.6]} 6. O-O {[%clk 0:02:56.5]} 6... e6 {[%clk
0:02:52.7]} 7. d4 {[%clk 0:02:56.3]} 7... cxd4 {[%clk 0:02:51.4]} 8. Qxd4 {[%clk
0:02:57.2]} 8... Qxd4 {[%clk 0:02:43.6]} 9. Nxd4 {[%clk 0:02:58.1]} 9... a6
{[%clk 0:02:30.6]} 10. Nc3 {[%clk 0:02:56.4]} 10... Bc5 {[%clk 0:02:26.3]} 11.
Nb3 {[%clk 0:02:53.4]} 11... Bb6 {[%clk 0:02:22.7]} 12. Re1 {[%clk 0:02:25.2]}
12... O-O {[%clk 0:02:19.5]} 13. Be3 {[%clk 0:02:16.5]} 13... Bxe3 {[%clk
0:02:16.9]} 14. Rxe3 {[%clk 0:02:17.4]} 14... Nbd7 {[%clk 0:02:02.4]} 15. Rd1
{[%clk 0:02:11.8]} 15... Rb8 {[%clk 0:01:58.4]} 16. Na4 {[%clk 0:01:57.2]} 16...
b5 {[%clk 0:01:53.4]} 17. Nac5 {[%clk 0:01:55.6]} 17... Nxc5 {[%clk 0:01:49]}
18. Nxc5 {[%clk 0:01:56.5]} 18... Nd5 {[%clk 0:01:29.5]} 19. Bxd5 {[%clk
0:01:54.6]} 19... exd5 {[%clk 0:01:30.4]} 20. Rxd5 {[%clk 0:01:54.4]} 20... Bb7
{[%clk 0:01:14]} 21. Nxb7 {[%clk 0:01:40.8]} 21... Rxb7 {[%clk 0:01:12.5]} 22.
Rd6 {[%clk 0:01:34.2]} 22... a5 {[%clk 0:01:06]} 23. b3 {[%clk 0:01:32.7]} 23...
a4 {[%clk 0:00:56.1]} 24. bxa4 {[%clk 0:01:25.9]} 24... bxa4 {[%clk 0:00:57]}
25. Ra3 {[%clk 0:01:25.6]} 25... Rc7 {[%clk 0:00:48.8]} 26. c3 {[%clk
0:01:19.9]} 26... Rc4 {[%clk 0:00:39.3]} 27. Ra6 {[%clk 0:01:17.8]} 27... g6
{[%clk 0:00:27.3]} 28. R6xa4 {[%clk 0:01:17.1]} 28... Rfc8 {[%clk 0:00:25.2]}
29. Rxc4 {[%clk 0:01:16.4]} 29... Rxc4 {[%clk 0:00:26.1]} 30. Rb3 {[%clk
0:01:16.7]} 30... Ra4 {[%clk 0:00:25]} 31. a3 {[%clk 0:01:16.5]} 31... Kf8
{[%clk 0:00:24.4]} 32. f3 {[%clk 0:01:16.7]} 32... Ke7 {[%clk 0:00:24.3]} 33.
Kf2 {[%clk 0:01:17.1]} 33... Kd6 {[%clk 0:00:24.7]} 34. Ke3 {[%clk 0:01:17.6]}
34... Kc5 {[%clk 0:00:24.9]} 35. Kd3 {[%clk 0:01:18.1]} 35... h5 {[%clk
0:00:22.5]} 36. Rb7 {[%clk 0:01:17.3]} 36... Rxa3 {[%clk 0:00:19.6]} 37. Rxf7
{[%clk 0:01:16.7]} 37... Ra2 {[%clk 0:00:19.8]} 38. Rg7 {[%clk 0:01:14.2]} 38...
Rxh2 {[%clk 0:00:17.9]} 39. Rxg6 {[%clk 0:01:14.2]} 39... h4 {[%clk 0:00:14.5]}
40. gxh4 {[%clk 0:01:13]} 40... Rxh4 {[%clk 0:00:15.4]} 41. Rg4 {[%clk
0:01:12.9]} 41... Rh3 {[%clk 0:00:13.4]} 42. Rf4 {[%clk 0:01:11.7]} 42... Rh1
{[%clk 0:00:13.2]} 43. c4 {[%clk 0:01:11.2]} 43... Rd1+ {[%clk 0:00:12.3]} 44.
Ke3 {[%clk 0:01:11.3]} 44... Ra1 {[%clk 0:00:10.1]} 45. Re4 {[%clk 0:01:11.1]}
45... Ra3+ {[%clk 0:00:08.5]} 46. Kf4 {[%clk 0:01:11.2]} 46... Rc3 {[%clk
0:00:07.1]} 47. Kg4 {[%clk 0:01:10.4]} 47... Kd6 {[%clk 0:00:04.9]} 48. f4
{[%clk 0:01:09]} 48... Rc1 {[%clk 0:00:03.8]} 49. Kg5 {[%clk 0:01:06.8]} 49...
Rg1+ {[%clk 0:00:03.6]} 50. Kf6 {[%clk 0:01:06.7]} 50... Rf1 {[%clk 0:00:03.1]}
51. f5 {[%clk 0:01:05.2]} 51... Ra1 {[%clk 0:00:01.9]} 52. Kg6 {[%clk
0:01:04.2]} 52... Kd7 {[%clk 0:00:01.9]} 53. f6 {[%clk 0:01:03.6]} 53... Ra6
{[%clk 0:00:02.2]} 54. Kg7 {[%clk 0:01:03.1]} 54... Kd8 {[%clk 0:00:02.5]} 55.
f7 {[%clk 0:01:02.8]} 1-0

[Event "*** Titled Tuesday Blitz"]
[Site "Chess.com"]
[Date "2020.12.29"]
[Round "1"]
[White "leejunhyeok"]
[Black "theturtlemoves"]
[Result "1-0"]
[WhiteElo "2711"]
[BlackElo "2376"]
[TimeControl "180+1"]
[EndTime "10:07:21 PST"]
[Termination "leejunhyeok won on time"]

1. e4 {[%clk 0:03:00.9]} 1... e5 {[%clk 0:02:59.8]} 2. Nf3 {[%clk 0:03:00.3]}
2... Nc6 {[%clk 0:03:00.2]} 3. Bc4 {[%clk 0:03:00.7]} 3... Nf6 {[%clk
0:02:59.6]} 4. d3 {[%clk 0:03:00.4]} 4... Bc5 {[%clk 0:02:59]} 5. O-O {[%clk
0:02:59.2]} 5... O-O {[%clk 0:02:58.2]} 6. a4 {[%clk 0:02:55.1]} 6... a5 {[%clk
0:02:57.6]} 7. Bg5 {[%clk 0:02:49]} 7... h6 {[%clk 0:02:57.2]} 8. Bh4 {[%clk
0:02:49.2]} 8... g5 {[%clk 0:02:54.4]} 9. Bg3 {[%clk 0:02:49.3]} 9... d6 {[%clk
0:02:54.3]} 10. c3 {[%clk 0:02:46.8]} 10... Bg4 {[%clk 0:02:36.1]} 11. Na3
{[%clk 0:02:40.7]} 11... Ne7 {[%clk 0:02:22.6]} 12. d4 {[%clk 0:02:33.1]} 12...
Bxa3 {[%clk 0:02:16.1]} 13. Rxa3 {[%clk 0:02:32.6]} 13... Ng6 {[%clk 0:02:08.4]}
14. Qd3 {[%clk 0:02:06.8]} 14... Qe7 {[%clk 0:02:02.1]} 15. Re1 {[%clk
0:02:03.7]} 15... Nh5 {[%clk 0:01:59.6]} 16. Nd2 {[%clk 0:01:43.9]} 16... Nhf4
{[%clk 0:01:53.6]} 17. Qb1 {[%clk 0:01:32.7]} 17... Kh8 {[%clk 0:01:45.6]} 18.
Bf1 {[%clk 0:01:21.7]} 18... h5 {[%clk 0:01:32.6]} 19. f3 {[%clk 0:01:22]} 19...
Bd7 {[%clk 0:01:26.8]} 20. Nc4 {[%clk 0:01:15.5]} 20... h4 {[%clk 0:01:12.4]}
21. Bf2 {[%clk 0:01:15.6]} 21... g4 {[%clk 0:01:11.6]} 22. fxg4 {[%clk
0:01:13.6]} 22... Bxg4 {[%clk 0:01:10.7]} 23. Ne3 {[%clk 0:01:13.9]} 23... Qg5
{[%clk 0:01:04.2]} 24. Kh1 {[%clk 0:01:03.7]} 24... Bd7 {[%clk 0:00:27.3]} 25.
Nf5 {[%clk 0:00:55.2]} 25... Rg8 {[%clk 0:00:24.3]} 26. c4 {[%clk 0:00:39.3]}
26... Bxf5 {[%clk 0:00:15]} 27. exf5 {[%clk 0:00:39]} 27... Ne7 {[%clk
0:00:15.5]} 28. g3 {[%clk 0:00:35]} 28... hxg3 {[%clk 0:00:04.9]} 29. Rxg3
{[%clk 0:00:34.4]} 29... Qh5 {[%clk 0:00:04.8]} 30. dxe5 {[%clk 0:00:21.8]}
30... Nxf5 {[%clk 0:00:03.8]} 31. Rxg8+ {[%clk 0:00:16.7]} 31... Rxg8 {[%clk
0:00:04.7]} 32. Qe4 {[%clk 0:00:14.9]} 32... Qg4 {[%clk 0:00:01.8]} 33. exd6
{[%clk 0:00:09.2]} 33... Nxd6 {[%clk 0:00:01.6]} 34. Bd4+ {[%clk 0:00:08.3]} 1-0

[Event "*** Titled Tuesday Blitz"]
[Site "Chess.com"]
[Date "2020.12.29"]
[Round "1"]
[White "Vamostodorecto"]
[Black "Keranke"]
[Result "0-1"]
[WhiteElo "2425"]
[BlackElo "2819"]
[TimeControl "180+1"]
[EndTime "10:07:23 PST"]
[Termination "Keranke won by resignation"]

1. d4 {[%clk 0:02:15.1]} 1... g6 {[%clk 0:02:58.5]} 2. c4 {[%clk 0:02:15.3]}
2... Bg7 {[%clk 0:02:58.8]} 3. e4 {[%clk 0:02:15.5]} 3... d6 {[%clk 0:02:58.8]}
4. Nc3 {[%clk 0:02:14.6]} 4... Nc6 {[%clk 0:02:58.5]} 5. Be3 {[%clk 0:02:14.8]}
5... e5 {[%clk 0:02:58.2]} 6. d5 {[%clk 0:02:12.5]} 6... Nce7 {[%clk 0:02:58.2]}
7. Qd2 {[%clk 0:02:11.2]} 7... f5 {[%clk 0:02:58.4]} 8. f3 {[%clk 0:02:10.6]}
8... Nf6 {[%clk 0:02:58.4]} 9. Bd3 {[%clk 0:02:09.5]} 9... O-O {[%clk
0:02:58.1]} 10. Nge2 {[%clk 0:02:09.7]} 10... Bd7 {[%clk 0:02:49.7]} 11. O-O
{[%clk 0:02:08.6]} 11... f4 {[%clk 0:02:49.4]} 12. Bf2 {[%clk 0:02:08.2]} 12...
g5 {[%clk 0:02:49.9]} 13. c5 {[%clk 0:02:07.7]} 13... a6 {[%clk 0:02:38.4]} 14.
Rac1 {[%clk 0:02:01.9]} 14... Ng6 {[%clk 0:02:38.1]} 15. Bc4 {[%clk 0:01:52]}
15... Kh8 {[%clk 0:02:36.4]} 16. b4 {[%clk 0:01:46]} 16... g4 {[%clk 0:02:35.6]}
17. Kh1 {[%clk 0:01:43.5]} 17... Nh5 {[%clk 0:02:32.1]} 18. fxg4 {[%clk
0:01:36.4]} 18... Bxg4 {[%clk 0:02:30.9]} 19. Ng1 {[%clk 0:01:36.8]} 19... Bf6
{[%clk 0:02:12.6]} 20. Be2 {[%clk 0:01:36]} 20... Bxe2 {[%clk 0:02:05.8]} 21.
Qxe2 {[%clk 0:01:28.6]} 21... Ng7 {[%clk 0:02:04.3]} 22. Nf3 {[%clk 0:01:28.7]}
22... Rg8 {[%clk 0:02:01.6]} 23. Na4 {[%clk 0:01:26.3]} 23... Qe8 {[%clk
0:01:52.1]} 24. Qc2 {[%clk 0:01:17.4]} 24... Nh5 {[%clk 0:01:45.3]} 25. cxd6
{[%clk 0:01:17]} 25... cxd6 {[%clk 0:01:45.3]} 26. Nb6 {[%clk 0:01:17]} 26...
Rd8 {[%clk 0:01:44.1]} 27. Qe2 {[%clk 0:01:12.1]} 27... Ne7 {[%clk 0:01:28.8]}
28. Rc7 {[%clk 0:01:10.5]} 28... Qg6 {[%clk 0:01:28.9]} 29. Bh4 {[%clk
0:01:02.8]} 29... Bxh4 {[%clk 0:01:17.9]} 30. Nxh4 {[%clk 0:01:03.7]} 30... Qg5
{[%clk 0:01:17.9]} 31. Nf3 {[%clk 0:00:45.1]} 31... Qh6 {[%clk 0:01:17.9]} 32.
Kg1 {[%clk 0:00:41]} 32... Rg7 {[%clk 0:01:15]} 33. Rf2 {[%clk 0:00:31]} 33...
Ng6 {[%clk 0:01:04.9]} 34. Qc4 {[%clk 0:00:28]} 34... Rdg8 {[%clk 0:00:59.9]}
35. Rxg7 {[%clk 0:00:26.1]} 35... Qxg7 {[%clk 0:01:00.8]} 36. Ng5 {[%clk
0:00:22.4]} 36... Nh4 {[%clk 0:00:58.2]} 37. Ne6 {[%clk 0:00:21.7]} 37... Qg4
{[%clk 0:00:54.6]} 38. Qf1 {[%clk 0:00:17.9]} 38... f3 {[%clk 0:00:52.1]} 39. g3
{[%clk 0:00:15.2]} 39... Nxg3 {[%clk 0:00:51.6]} 40. hxg3 {[%clk 0:00:16.1]}
40... Qxg3+ {[%clk 0:00:52.5]} 41. Kh1 {[%clk 0:00:16.6]} 41... Rg6 {[%clk
0:00:49.9]} 42. Rh2 {[%clk 0:00:13.4]} 42... Qg2+ {[%clk 0:00:47.2]} 43. Rxg2
{[%clk 0:00:11]} 43... fxg2+ {[%clk 0:00:48.1]} 44. Kg1 {[%clk 0:00:11.4]} 44...
gxf1=Q+ {[%clk 0:00:47.8]} 45. Kxf1 {[%clk 0:00:12.3]} 45... Nf3 {[%clk
0:00:47.5]} 46. Nc8 {[%clk 0:00:11.4]} 46... Nd2+ {[%clk 0:00:47.7]} 47. Ke2
{[%clk 0:00:10.4]} 47... Nxe4 {[%clk 0:00:48.6]} 48. Ke3 {[%clk 0:00:10.3]}
48... Nc3 {[%clk 0:00:47.7]} 49. Nxd6 {[%clk 0:00:09.1]} 49... Nxd5+ {[%clk
0:00:47.9]} 50. Ke4 {[%clk 0:00:08.3]} 50... Rxe6 {[%clk 0:00:48.8]} 51. Kxd5
{[%clk 0:00:07.5]} 51... Rxd6+ {[%clk 0:00:49]} 52. Kxd6 {[%clk 0:00:08.4]}
52... e4 {[%clk 0:00:49.9]} 0-1